bitfinex-derivatives/quotes_SOLF0:USTF0_20241216
["timestamp","ask_amount","ask_price","bid_price","bid_amount"]
[1734354642133,1.4639,214.82,214.64,5.4771571]
[1734354642421,11.47134026,214.75,214.64,5.4771571]
[1734354642622,11.47134026,214.75,214.66,2.3304]
[1734354642824,11.47134026,214.75,214.64,5.4771571]
[1734354643020,2.3299,214.71,214.67,2.3303]
[1734354643332,11.47134026,214.75,214.64,5.4771571]
[1734354644427,2.3298,214.72,214.68,2.3302]
[1734354645828,11.47134026,214.75,214.64,5.4771571]
[1734354646027,1.5252,214.74,214.61,3.1685]
[1734354646324,2.3302,214.69,214.64,2.3306]
[1734354646927,3.025,214.74,214.61,3.1685]
[1734354647329,3.025,214.74,214.63,11.47134026]
[1734354647530,2.3297,214.73,214.63,11.47134026]
[1734354647729,11.47134026,214.8,214.66,11.47134026]
[1734354648134,2.3294,214.76,214.66,11.47134026]
[1734354648634,2.3294,214.76,214.63,11.47134026]
[1734354648635,11.47134026,214.77,214.64,1.5755]
[1734354648837,11.47134026,214.77,214.61,14.63984026]
[1734354649233,2.3298,214.73,214.67,2.3303]
[1734354649432,11.47134026,214.77,214.61,14.63984026]
[1734354650333,2.3298,214.73,214.67,2.3303]
[1734354650532,11.47134026,214.77,214.67,2.3303]
[1734354650939,11.47134026,214.77,214.61,14.63984026]
[1734354651135,11.47134026,214.74,214.65,2.3305]
[1734354651343,11.47134026,214.74,214.61,1.607]
[1734354651635,3.0218,214.81,214.64,11.47134026]
[1734354651839,11.47134026,214.77,214.64,11.47134026]
[1734354652242,2.3298,214.72,214.67,2.3303]
[1734354652538,11.47134026,214.77,214.64,11.47134026]
[1734354653033,2.3297,214.74,214.69,2.3301]
[1734354653238,2.3297,214.74,214.64,11.47134026]
[1734354653436,11.47134026,214.77,214.64,11.47134026]
[1734354653638,2.3298,214.72,214.68,2.3302]
[1734354654364,2.3299,214.71,214.67,2.3303]
[1734354655636,2.3298,214.73,214.69,2.3301]
[1734354655833,11.47134026,214.77,214.62,5.66502348]
[1734354656034,13.07604026,214.8,214.64,11.47134026]
[1734354656941,2.3297,214.74,214.7,2.33]
[1734354657762,2.3297,214.73,214.68,2.3302]
[1734354657935,2.3297,214.73,214.64,11.47134026]
[1734354659043,2.3297,214.73,214.69,2.3301]
[1734354660837,2.3295,214.75,214.71,2.3299]
[1734354661045,13.07604026,214.8,214.66,5.7260545]
[1734354661739,1.6047,214.8,214.67,11.47134026]
[1734354661944,3.9337,214.8,214.7,11.47134026]
[1734354662444,3.9337,214.8,214.75,2.3294]
[1734354662941,1.6047,214.8,214.7,11.47134026]
[1734354663134,2.3294,214.76,214.7,11.47134026]
[1734354663649,2.3293,214.77,214.73,2.3296]
[1734354664140,2.3292,214.79,214.76,2.3294]
[1734354664346,1.4949,214.81,214.7,11.47134026]
[1734354664741,2.3291,214.79,214.7,11.47134026]
[1734354665244,2.3292,214.78,214.7,11.47134026]
[1734354665745,1.4949,214.81,214.7,11.47134026]
[1734354666942,2.3292,214.78,214.7,11.47134026]
[1734354667141,0.29663,214.82,214.7,11.47134026]
[1734354667438,2.3289,214.81,214.78,2.3291]
[1734354668043,2.329,214.8,214.77,2.3293]
[1734354668642,2.329,214.8,214.7,11.47134026]
[1734354668848,2.3291,214.79,214.75,2.3295]
[1734354669243,2.3293,214.77,214.73,2.3296]
[1734354669441,2.3293,214.77,214.7,11.47134026]
[1734354669746,2.3293,214.77,214.71,5.05409488]
[1734354670044,2.3293,214.77,214.72,5.05409488]
[1734354670343,2.3293,214.77,214.74,2.3295]
[1734354671649,2.3295,214.76,214.72,2.3298]
[1734354673350,2.3295,214.76,214.73,2.3296]
[1734354673553,0.29663,214.82,214.67,13.08284026]
[1734354673748,0.29663,214.82,214.68,5.05781992]
[1734354673749,2.3293,214.77,214.68,5.05781992]
[1734354673947,2.3293,214.77,214.67,13.08284026]
[1734354673948,2.3293,214.77,214.71,2.3299]
[1734354674150,2.3293,214.77,214.69,5.05781673]
[1734354674447,2.3293,214.77,214.7,5.05754576]
[1734354674751,11.47134026,214.8,214.71,5.05754576]
[1734354674944,11.47134026,214.77,214.66,5.7260545]
[1734354675145,11.47134026,214.77,214.67,5.05894291]
[1734354675342,11.47134026,214.77,214.69,2.3301]
[1734354677044,0.29663,214.82,214.62,1.585]
[1734354677045,11.47134026,214.74,214.62,1.585]
[1734354677246,14.71580286,214.73,214.63,5.06326817]
[1734354677445,2.3302,214.69,214.61,1.5314]
[1734354677645,14.71580286,214.73,214.62,10.67755442]
[1734354677848,14.71580286,214.73,214.63,5.06621126]
[1734354678048,1.4807,214.76,214.64,5.06621126]
[1734354678247,13.17620506,214.76,214.65,5.06621126]
[1734354678448,2.33,214.71,214.66,5.06621126]
[1734354678649,2.33,214.71,214.62,5.61134316]
[1734354678853,1.4807,214.76,214.63,5.06699195]
[1734354679145,1.4807,214.76,214.62,5.61134316]
[1734354679146,2.3301,214.7,214.64,5.06699195]
[1734354679351,11.47134026,214.74,214.65,5.06699195]
[1734354679547,11.47134026,214.77,214.66,5.06699195]
[1734354679851,14.47844026,214.81,214.67,16.53833221]
[1734354680064,2.3295,214.76,214.72,2.3298]
[1734354681449,2.3293,214.77,214.73,2.3297]
[1734354682053,2.3294,214.76,214.71,2.3298]
[1734354682354,2.3294,214.76,214.67,11.47134026]
[1734354682556,2.3294,214.76,214.68,5.06959889]
[1734354682752,2.3294,214.76,214.69,5.06959889]
[1734354682954,11.70166566,214.8,214.7,16.54093915]
[1734354683150,3.0071,214.81,214.71,5.06959889]
[1734354683151,2.3291,214.79,214.71,5.06959889]
[1734354683353,2.3291,214.79,214.72,5.06959889]
[1734354683554,2.3291,214.79,214.74,2.3295]
[1734354683747,2.3292,214.78,214.74,2.3295]
[1734354684053,11.47134026,214.79,214.67,11.47134026]
[1734354684255,11.71368413,214.78,214.68,5.06960458]
[1734354684551,11.71368413,214.78,214.69,5.06960458]
[1734354684744,11.71368413,214.78,214.7,5.06960458]
[1734354684946,2.3298,214.73,214.68,2.3302]
[1734354685154,11.71368413,214.78,214.68,2.3302]
[1734354685155,11.71368413,214.78,214.69,5.06992197]
[1734354685355,11.47134026,214.76,214.68,2.3302]
[1734354685558,11.71013223,214.75,214.66,2.3305]
[1734354685752,11.47134026,214.73,214.62,5.61134316]
[1734354685953,11.47134026,214.73,214.63,5.07060498]
[1734354686148,2.3304,214.67,214.64,5.07060498]
[1734354686352,12.95544026,214.73,214.65,5.07060498]
[1734354686553,12.95544026,214.73,214.61,1.5314]
[1734354686853,11.70660669,214.72,214.62,7.40112719]
[1734354687048,11.70660669,214.72,214.63,5.07030542]
[1734354687355,11.70660669,214.72,214.64,5.07030542]
[1734354687554,11.70660669,214.72,214.62,2.3309]
[1734354687752,2.3305,214.66,214.63,5.06983553]
[1734354687956,11.47134026,214.7,214.58,2.3313]
[1734354688152,11.47134026,214.7,214.59,5.06994621]
[1734354688354,2.3308,214.64,214.6,5.06994621]
[1734354688555,11.47134026,214.67,214.61,5.06994621]
[1734354688752,11.47134026,214.67,214.59,2.3312]
[1734354688959,2.3307,214.64,214.6,5.06936344]
[1734354689259,11.47134026,214.7,214.58,5.71423817]
[1734354689455,2.3304,214.67,214.59,5.06810911]
[1734354689651,2.3304,214.67,214.6,5.06810911]
[1734354689856,2.3304,214.67,214.61,5.06810911]
[1734354690056,2.3304,214.67,214.63,2.3308]
[1734354690351,2.3302,214.69,214.58,17.18557843]
[1734354690557,1.5528,214.72,214.63,2.3307]
[1734354690857,2.3302,214.69,214.58,17.18557843]
[1734354691057,11.70615973,214.72,214.61,11.47134026]
[1734354691254,1.5625,214.74,214.64,11.47134026]
[1734354691452,2.3297,214.73,214.65,5.06719368]
[1734354691651,2.3297,214.73,214.66,5.06719368]
[1734354691851,2.3297,214.73,214.68,2.3302]
[1734354692256,2.3297,214.73,214.64,11.47134026]
[1734354692552,2.3297,214.73,214.68,2.3302]
[1734354693956,2.3294,214.76,214.72,2.3298]
[1734354694163,14.62114026,214.82,214.72,2.3298]
[1734354694461,11.60809815,214.81,214.68,11.47134026]
[1734354694657,11.60809815,214.81,214.62,46.73745288]
[1734354694658,2.3286,214.84,214.75,2.3295]
[1734354694859,11.47134026,214.86,214.71,11.47134026]
[1734354695056,11.47134026,214.86,214.72,5.06558161]
[1734354695057,11.61022524,214.85,214.72,5.06558161]
[1734354695258,2.3289,214.81,214.76,2.3293]
[1734354696159,2.3289,214.81,214.71,11.47134026]
[1734354696359,2.3289,214.81,214.72,5.0640302]
[1734354696665,11.61022524,214.85,214.77,11.47134026]
[1734354696957,4.5981,214.95,214.8,11.47134026]
[1734354697155,11.47134026,214.93,214.8,11.47134026]
[1734354697357,2.3279,214.9,214.8,11.47134026]
[1734354697555,11.47134026,214.93,214.87,2.3282]
[1734354697754,4.5981,214.95,214.83,11.47134026]
[1734354697957,4.5981,214.95,214.84,5.05402683]
[1734354698155,4.5981,214.95,214.87,2.3282]
[1734354698156,16.18539806,214.95,214.87,2.3282]
[1734354698355,4.5981,214.95,214.83,11.47134026]
[1734354698562,2.3275,214.94,214.84,5.05174417]
[1734354698863,2.3275,214.94,214.88,2.3281]
[1734354700565,11.47134026,214.99,214.88,2.3281]
[1734354700765,2.3273,214.96,214.88,2.3281]
[1734354700967,11.47134026,214.99,214.88,2.3281]
[1734354702566,2.3275,214.94,214.88,2.3281]
[1734354703061,11.47134026,214.99,214.86,5.52760063]
[1734354703262,2.3276,214.93,214.87,2.3282]
[1734354703464,11.47134026,214.96,214.87,2.3282]
[1734354703684,2.3279,214.9,214.85,2.3283]
[1734354703863,11.47134026,214.96,214.83,12.92654026]
[1734354704658,2.3278,214.91,214.83,12.92654026]
[1734354704864,2.3278,214.91,214.85,5.5974712]
[1734354705966,2.3277,214.92,214.87,2.3281]
[1734354706767,11.47134026,214.99,214.88,2.3281]
[1734354707869,11.47134026,214.99,214.85,5.5974712]
[1734354708870,2.3275,214.94,214.9,2.3278]
[1734354709477,2.3273,214.96,214.91,2.3278]
[1734354710568,2.3273,214.96,214.92,2.3277]
[1734354710973,2.3273,214.96,214.86,11.47134026]
[1734354712370,11.47134026,215.02,214.89,11.47134026]
[1734354712568,4.7441,215.04,214.92,11.47134026]
[1734354712871,2.3266,215.02,214.97,2.3271]
[1734354716371,2.3265,215.03,214.95,11.47134026]
[1734354716672,11.47134026,215.08,214.95,11.47134026]
[1734354717077,2.3262,215.06,215.01,2.3266]
[1734354717271,11.47134026,215.08,215.01,2.3266]
[1734354717774,11.47134026,215.08,214.95,11.47134026]
[1734354719174,17.03659279,215.09,214.95,11.47134026]
[1734354719879,2.3265,215.03,214.99,2.3269]
[1734354720476,2.3264,215.05,215.0,2.3268]
[1734354720673,2.3264,215.05,214.98,11.47134026]
[1734354720879,2.3258,215.09,215.04,2.3263]
[1734354721077,11.90978026,215.13,215.01,11.47134026]
[1734354721576,2.3259,215.09,215.04,2.3264]
[1734354721776,11.90978026,215.13,215.04,2.3264]
[1734354721973,2.3261,215.07,215.02,2.3265]
[1734354722486,11.47134026,215.1,214.98,11.47134026]
[1734354722684,11.47134026,215.07,214.96,5.65744798]
[1734354723082,2.3265,215.03,214.99,2.3269]
[1734354723483,11.47134026,215.07,214.96,5.65744798]
[1734354723781,2.3264,215.04,215.0,2.3267]
[1734354723979,11.47134026,215.1,214.96,5.65744798]
[1734354724479,2.3262,215.06,215.01,2.3266]
[1734354724684,2.3262,215.06,214.96,5.65744798]
[1734354724883,2.3262,215.06,214.98,11.47134026]
[1734354725783,11.90978026,215.13,214.98,11.47134026]
[1734354725981,11.90978026,215.13,215.03,2.3264]
[1734354726382,2.326,215.08,215.03,2.3264]
[1734354726583,11.90978026,215.13,215.03,2.3264]
[1734354728376,2.326,215.08,215.03,2.3264]
[1734354729182,2.3261,215.07,215.03,2.3264]
[1734354730779,2.3263,215.05,215.01,2.3266]
[1734354731085,11.47134026,215.1,214.96,5.65744798]
[1734354731289,11.47134026,215.07,214.96,5.65744798]
[1734354731482,2.3268,215.01,214.97,2.327]
[1734354731784,11.47134026,215.07,214.97,2.327]
[1734354731984,11.47134026,215.04,214.97,2.327]
[1734354732580,2.3268,215.01,214.97,2.327]
[1734354733990,2.3265,215.03,214.97,2.3271]
[1734354734186,11.47134026,215.06,214.97,2.3271]
[1734354735086,2.3268,215.01,214.97,2.3271]
[1734354735888,11.47134026,215.03,214.93,25.80026875]
[1734354736188,0.43844,215.13,214.91,11.47134026]
[1734354736189,2.9623,215.05,214.91,11.47134026]
[1734354736383,1.6065,215.04,214.95,2.3273]
[1734354736686,1.6065,215.04,214.91,11.47134026]
[1734354736887,2.3269,214.99,214.91,37.27160901]
[1734354737083,2.3269,214.99,214.92,56.93591553]
[1734354737389,2.3269,214.99,214.95,2.3273]
[1734354737686,2.327,214.98,214.94,2.3274]
[1734354738887,2.327,214.98,214.91,37.27160901]
[1734354739087,14.43364026,215.05,214.92,56.96616517]
[1734354739285,14.43364026,215.05,214.93,5.0356078]
[1734354739582,14.43364026,215.05,214.96,2.3272]
[1734354739783,2.3268,215.0,214.96,2.3272]
[1734354741287,2.3268,215.0,214.97,5.04583229]
[1734354741482,14.43364026,215.05,214.94,2.3274]
[1734354741483,2.327,214.98,214.94,2.3274]
[1734354741685,11.47134026,215.02,214.95,5.0508955]
[1734354741888,2.3271,214.98,214.93,2.3275]
[1734354742088,2.3271,214.98,214.94,5.05093284]
[1734354742388,2.3271,214.98,214.9,25.80026875]
[1734354742584,2.3271,214.98,214.91,57.00922814]
[1734354742785,2.3271,214.98,214.93,2.3275]
[1734354743086,2.3271,214.98,214.94,5.05203318]
[1734354743388,1.4609,215.01,214.95,5.05203318]
[1734354743590,13.03523199,215.01,214.93,2.3275]
[1734354743889,1.4609,215.01,214.94,5.05254809]
[1734354744186,13.03559818,215.01,214.95,5.05254809]
[1734354744384,2.3271,214.98,214.93,2.3275]
[1734354744588,2.3271,214.98,214.94,5.05313966]
[1734354744787,2.3271,214.98,214.95,5.05313966]
[1734354744988,2.3271,214.98,214.89,37.27160901]
[1734354745200,2.3271,214.98,214.9,51.97168048]
[1734354745389,2.3271,214.98,214.91,5.05293182]
[1734354745682,2.3271,214.98,214.95,2.3273]
[1734354745989,2.3271,214.98,214.96,5.05293182]
[1734354746179,1.4609,215.01,214.95,2.3273]
[1734354746385,1.4609,215.01,214.96,5.05335662]
[1734354746688,1.4609,215.01,214.91,6.45006719]
[1734354746883,1.4609,215.01,214.92,5.05062688]
[1734354747081,1.4609,215.01,214.93,5.05062688]
[1734354747284,3.7877,215.01,214.96,2.3272]
[1734354748789,1.4609,215.01,214.96,2.3272]
[1734354748996,2.3268,215.0,214.96,2.3272]
[1734354749791,1.4609,215.01,214.89,11.47134026]
[1734354749990,1.4609,215.01,214.97,2.327]
[1734354750892,1.4609,215.01,214.95,2.3273]
[1734354751188,11.47134026,214.99,214.86,11.47134026]
[1734354751395,11.47134026,214.99,214.87,5.06148202]
[1734354751588,11.47134026,214.99,214.88,5.06148202]
[1734354751792,11.47134026,214.99,214.89,5.06148202]
[1734354751987,2.3272,214.97,214.93,2.3275]
[1734354752200,1.4609,215.01,214.9,5.63439718]
[1734354752393,1.4609,215.01,214.91,5.06213071]
[1734354752595,3.7876,215.01,214.97,2.3271]
[1734354752797,3.7876,215.01,214.9,5.63439718]
[1734354752990,3.7876,215.01,214.91,5.06166484]
[1734354753291,3.7876,215.01,214.9,5.63439718]
[1734354753292,3.7876,215.01,214.92,5.06166484]
[1734354753487,3.7876,215.01,214.93,5.06166484]
[1734354753692,3.7876,215.01,214.94,5.06166484]
[1734354753891,1.4609,215.01,214.95,5.06166484]
[1734354754092,2.3269,214.99,214.95,2.3272]
[1734354754293,2.3269,214.99,214.9,5.63439718]
[1734354754591,2.3269,214.99,214.91,5.06345206]
[1734354754897,2.3269,214.99,214.92,5.06345206]
[1734354755199,2.3269,214.99,214.9,5.63439718]
[1734354755400,2.3269,214.99,214.96,2.3272]
[1734354755796,1.4609,215.01,214.9,5.63439718]
[1734354755998,13.0604556,215.01,214.93,2.3275]
[1734354756196,1.4609,215.01,214.94,5.06680025]
[1734354756502,1.4609,215.01,214.9,5.63439718]
[1734354756503,2.3271,214.98,214.9,5.63439718]
[1734354756696,2.3271,214.98,214.91,5.06729656]
[1734354756896,2.3271,214.98,214.92,5.06729656]
[1734354757096,1.4609,215.01,214.93,5.06729656]
[1734354757291,1.4609,215.01,214.9,5.63439718]
[1734354757594,13.06072097,215.01,214.91,5.06726674]
[1734354757802,11.47134026,214.99,214.92,5.06726674]
[1734354758095,11.47134026,214.99,214.86,11.47134026]
[1734354758300,11.47134026,214.99,214.87,5.06689552]
[1734354758507,11.47134026,214.99,214.86,11.47134026]
[1734354758508,2.3274,214.95,214.86,11.47134026]
[1734354758695,2.3274,214.95,214.88,5.06665767]
[1734354758893,2.3274,214.95,214.89,5.06665767]
[1734354759091,2.3274,214.95,214.91,2.3277]
[1734354759292,2.3274,214.95,214.92,5.06665767]
[1734354759493,2.3274,214.95,214.86,11.47134026]
[1734354759698,2.3274,214.95,214.91,2.3277]
[1734354759897,2.3274,214.95,214.92,5.06608541]
[1734354760198,2.3274,214.95,214.91,2.3277]
[1734354760391,1.4609,215.01,214.89,5.58718843]
[1734354760392,1.4609,215.01,214.89,17.05852869]
[1734354760593,1.4609,215.01,214.9,5.06567499]
[1734354760797,23.0690229,215.04,214.89,17.05852869]
[1734354760798,11.59768264,215.03,214.92,11.47134026]
[1734354760998,2.3268,215.0,214.96,2.3271]
[1734354761703,2.3268,215.0,214.97,2.3271]
[1734354763494,11.59885539,215.04,214.99,7.32024177]
[1734354763700,7.32024177,215.07,215.0,5.06139709]
[1734354763904,7.32024177,215.07,214.99,7.32024177]
[1734354764103,2.3264,215.05,214.95,11.4341213]
[1734354764406,2.3264,215.05,214.96,5.06208039]
[1734354764709,2.3264,215.05,214.95,11.4341213]
[1734354764710,2.3264,215.05,215.01,2.3267]
[1734354767400,2.3264,215.04,215.0,2.3268]
[1734354767803,2.3264,215.04,214.93,11.4341213]
[1734354768007,2.3264,215.04,214.97,2.3271]
[1734354768221,2.3261,215.07,214.96,11.4341213]
[1734354768409,4.5786,215.1,214.99,11.4341213]
[1734354768603,4.5786,215.1,215.06,2.3261]
[1734354769006,4.5786,215.1,214.99,11.4341213]
[1734354769210,2.3258,215.09,215.05,2.3262]
[1734354772706,2.3258,215.09,214.96,11.4341213]
[1734354772707,2.3262,215.06,214.96,11.4341213]
[1734354772911,11.58998585,215.08,214.97,5.06074914]
[1734354773113,11.58998585,215.08,214.98,5.06074914]
[1734354773416,2.3263,215.05,215.01,2.3267]
[1734354775025,2.3264,215.04,214.99,2.3268]
[1734354775218,2.3264,215.04,214.95,3.0353]
[1734354775514,2.3264,215.04,214.96,5.06262303]
[1734354775712,2.3267,215.02,214.97,5.06262303]
[1734354775912,11.58801499,215.05,214.95,3.0353]
[1734354776416,2.3267,215.02,214.98,2.327]
[1734354776819,2.3267,215.01,214.98,2.327]
[1734354781620,11.4341213,215.03,214.9,11.4341213]
[1734354781824,11.59213685,215.02,214.91,5.06314469]
[1734354782023,11.59213685,215.02,214.92,5.06314469]
[1734354782024,13.12403685,215.02,214.92,5.06314469]
[1734354782224,2.3271,214.98,214.94,2.3274]
[1734354782819,13.12403685,215.02,214.87,3.0865]
[1734354782820,11.4341213,215.0,214.87,3.0865]
[1734354783021,11.5890492,214.99,214.88,5.0633932]
[1734354783221,11.5890492,214.99,214.89,5.0633932]
[1734354783421,11.5890492,214.99,214.87,3.0865]
[1734354783634,2.3276,214.94,214.9,2.3279]
[1734354783822,11.5890492,214.99,214.88,16.49746737]
[1734354784028,3.0401,215.01,214.89,5.06303881]
[1734354784226,2.327,214.98,214.94,2.3274]
[1734354784423,14.62930899,215.01,214.91,11.4341213]
[1734354784625,3.0401,215.01,214.92,5.06258202]
[1734354784822,1.5319,215.02,214.93,5.06258202]
[1734354785023,11.59070812,215.04,214.94,5.06258202]
[1734354785219,2.3268,215.01,214.94,2.3274]
[1734354785429,2.3268,215.01,214.91,11.4341213]
[1734354785723,11.59070812,215.04,214.92,5.06208704]
[1734354785931,7.31990159,215.03,214.96,7.31990159]
[1734354786326,2.3267,215.01,214.96,9.64700159]
[1734354786833,2.3268,215.0,214.96,9.64700159]
[1734354788826,7.31990159,215.03,214.87,8.58476904]
[1734354788827,7.31990159,214.99,214.87,8.58476904]
[1734354789034,7.31990159,214.94,214.88,12.38264091]
[1734354789332,9.64740159,214.94,214.9,2.3278]
[1734354789526,9.64740159,214.94,214.88,7.31990159]
[1734354789732,9.64740159,214.94,214.89,5.06279732]
[1734354789932,9.64740159,214.94,214.91,2.3277]
[1734354790731,7.31990159,214.94,214.88,7.31990159]
[1734354790933,9.64740159,214.94,214.91,2.3277]
[1734354791930,2.3276,214.93,214.9,2.3279]
[1734354792538,2.3274,214.95,214.92,2.3277]
[1734354792739,11.44536271,214.98,214.87,8.58476904]
[1734354792930,11.44536271,214.98,214.88,5.06101114]
[1734354793130,2.3275,214.94,214.91,2.3278]
[1734354795839,2.3276,214.93,214.9,2.3279]
[1734354796135,11.44536271,214.98,214.84,11.44536271]
[1734354796335,11.44536271,214.95,214.85,5.05897595]
[1734354796539,2.328,214.89,214.86,7.38727595]
[1734354796741,2.328,214.89,214.86,2.3283]
[1734354797236,11.44536271,214.95,214.87,2.3281]
[1734354797533,11.44536271,214.95,214.83,5.614206]
[1734354797741,2.3276,214.93,214.84,5.05784555]
[1734354798040,11.44536271,214.95,214.83,5.614206]
[1734354798041,11.44536271,214.95,214.85,5.05784555]
[1734354798235,11.44536271,214.95,214.86,5.05784555]
[1734354798236,2.3276,214.93,214.86,5.05784555]
[1734354798440,2.3276,214.93,214.84,11.44536271]
[1734354798441,11.44536271,214.95,214.87,5.05784555]
[1734354798642,2.3272,214.97,214.94,2.3274]
[1734354798839,14.54276271,215.01,214.94,2.3274]
[1734354799136,14.54276271,215.01,214.87,11.44536271]
[1734354799346,2.3272,214.97,214.93,2.3275]
[1734354801748,2.3272,214.97,214.87,11.44536271]
[1734354802039,14.54276271,215.01,214.88,5.05585307]
[1734354802246,11.44536271,214.98,214.84,11.44536271]
[1734354802447,11.44536271,214.95,214.85,5.05669066]
[1734354802646,11.44536271,214.95,214.86,5.05669066]
[1734354802846,11.44536271,214.95,214.81,11.44536271]
[1734354803041,11.44536271,214.95,214.85,2.3284]
[1734354803245,2.3277,214.92,214.85,2.3284]
[1734354803442,11.44536271,214.95,214.81,11.44536271]
[1734354803748,11.44536271,214.95,214.88,2.328]
[1734354803944,2.3277,214.93,214.88,2.328]
[1734354804145,2.3277,214.93,214.89,2.328]
[1734354804346,2.3273,214.96,214.84,11.44536271]
[1734354804542,2.3273,214.96,214.85,5.05458964]
[1734354804743,11.44536271,214.99,214.87,11.44536271]
[1734354804949,2.327,214.98,214.88,5.05458964]
[1734354805144,3.0974,215.01,214.9,11.44536271]
[1734354805343,3.0974,215.01,214.96,2.3271]
[1734354805544,11.78077271,215.05,214.9,11.44536271]
[1734354805759,11.78077271,215.05,214.98,2.3269]
[1734354805948,11.78077271,215.05,214.93,11.44536271]
[1734354806148,11.78077271,215.05,214.94,5.05348283]
[1734354806355,2.3266,215.02,214.96,2.3272]
[1734354806551,2.3266,215.02,214.95,5.05326004]
[1734354806756,2.3266,215.02,214.96,5.05332486]
[1734354807054,2.3266,215.02,214.97,2.327]
[1734354808358,2.3266,215.02,214.98,2.327]
[1734354808556,2.3265,215.04,214.93,11.44536271]
[1734354808756,11.78077271,215.05,214.94,5.05311718]
[1734354809056,11.78077271,215.05,214.95,5.05311718]
[1734354809259,11.78077271,215.05,214.93,11.44536271]
[1734354809458,2.3266,215.03,214.98,2.327]
[1734354809960,2.3266,215.02,214.98,2.327]
[1734354810556,11.78077271,215.05,214.93,11.44536271]
[1734354810855,2.3265,215.04,214.99,2.3268]
[1734354812152,0.33541,215.05,214.99,11.44536271]
[1734354812353,0.33541,215.05,215.0,5.05161738]
[1734354812558,0.33541,215.05,215.01,5.05161738]
[1734354812870,0.33541,215.05,215.04,2.3264]
[1734354815458,1.5128,215.14,215.0,3.1471]
[1734354815459,2.3257,215.11,215.07,2.326]
[1734354815764,11.44536271,215.2,215.05,11.44536271]
[1734354815950,11.56520398,215.19,215.08,11.44536271]
[1734354816356,11.44536271,215.24,215.09,3.0131]
[1734354816655,11.55842267,215.23,215.16,2.325]
[1734354816851,11.44536271,215.21,215.09,3.0131]
[1734354817357,2.3249,215.18,215.14,2.3253]
[1734354819159,2.3249,215.18,215.13,2.3253]
[1734354819365,2.3249,215.18,215.09,3.0131]
[1734354819556,2.325,215.17,215.13,2.3253]
[1734354819760,11.44536271,215.18,215.05,11.44536271]
[1734354819957,11.44536271,215.18,215.06,5.03106086]
[1734354820162,2.3252,215.15,215.1,2.3256]
[1734354821164,2.325,215.17,215.13,2.3254]
[1734354821363,4.659,215.23,215.1,11.44536271]
[1734354821969,2.3246,215.21,215.16,2.325]
[1734354822167,4.659,215.23,215.16,2.325]
[1734354822469,2.3247,215.2,215.16,2.325]
[1734354823270,4.659,215.23,215.15,2.3252]
[1734354823568,2.3248,215.19,215.15,2.3252]
[1734354823960,2.3245,215.21,215.1,11.44536271]
[1734354824162,2.3245,215.21,215.11,3.0563]
[1734354825471,2.3244,215.23,215.13,11.44536271]
[1734354825674,11.44536271,215.29,215.16,11.44536271]
[1734354826171,2.3242,215.25,215.16,11.44536271]
[1734354826369,16.95876622,215.29,215.16,11.44536271]
[1734354827369,2.3244,215.23,215.13,11.44536271]
[1734354827771,11.44536271,215.26,215.13,11.44536271]
[1734354827967,2.3247,215.2,215.13,11.44536271]
[1734354828168,11.44536271,215.26,215.13,11.44536271]
[1734354828977,2.3246,215.2,215.13,11.44536271]
[1734354829278,11.44536271,215.23,215.11,3.0563]
[1734354829476,2.3251,215.16,215.13,2.3254]
[1734354829880,2.3251,215.16,215.09,5.51725925]
[1734354830176,11.44536271,215.2,215.11,2.3256]
[1734354830177,2.3252,215.15,215.11,2.3256]
[1734354830478,11.44536271,215.2,215.06,12.99956271]
[1734354830777,11.44536271,215.2,215.08,5.48635179]
[1734354831973,11.44536271,215.2,215.13,2.3254]
[1734354832776,11.44536271,215.27,215.12,11.44536271]
[1734354833675,2.3244,215.23,215.12,11.44536271]
[1734354833881,2.3244,215.23,215.15,11.44536271]
[1734354834881,2.3244,215.23,215.17,2.3249]
[1734354835179,2.3244,215.23,215.15,11.44536271]
[1734354835380,2.3244,215.23,215.2,2.3246]
[1734354835974,2.3244,215.22,215.18,2.3248]
[1734354836172,2.3244,215.22,215.15,11.44536271]
[1734354836173,11.44536271,215.27,215.12,11.44536271]
[1734354836375,4.6971,215.28,215.12,11.44536271]
[1734354836376,11.44536271,215.24,215.12,11.44536271]